fUSD/lending_fUSD_20241123
["ID","MTS","AMOUNT","RATE_DAILY","PERIOD"]
[343066371,1732322841124,-169.10358303,0.00056489,120]
[343066372,1732322851123,-22.58316697,0.00056489,120]
[343066373,1732322851150,-190.538,0.00056489,120]
[343066374,1732322851173,-405.39132748,0.00057,2]
[343066381,1732322922817,3332.0,0.00052697,120]
[343066382,1732322925811,1000.0,0.00052,30]
[343066385,1732322946400,-494.60867252,0.00057,2]
[343066386,1732322946428,-284.786,0.00057003,120]
[343066387,1732322946452,-249.7406,0.000579,30]
[343066388,1732322946477,-120.85021245,0.00058,120]
[343066389,1732322946501,-153.23,0.00058018,120]
[343066390,1732322946535,-827.24695293,0.00058018,2]
[343066391,1732322946561,-150.0,0.00058575,2]
[343066392,1732322946589,-231.70838832,0.000586,90]
[343066393,1732322946614,-152.0,0.00058819,3]
[343066394,1732322946639,-150.99,0.00058819,2]
[343066395,1732322946663,-999.99,0.00058819,10]
[343066396,1732322946686,-150.99,0.00058819,30]
[343066397,1732322946709,-299.99,0.00058819,120]
[343066398,1732322946733,-191.68675,0.00058989,120]
[343066399,1732322946765,-950.0,0.00059,2]
[343066400,1732322946791,-4275.0,0.00059188,117]
[343066401,1732322946816,-150.00000001,0.00059375,30]
[343066402,1732322946842,-284.786,0.00059395,120]
[343066403,1732322946868,-153.15,0.000595,60]
[343066404,1732322946894,-153.15,0.000595,60]
[343066405,1732322946918,-153.15,0.000595,60]
[343066406,1732322946941,-153.15,0.000595,60]
[343066407,1732322946964,-153.15,0.000595,60]
[343066408,1732322946988,-153.15,0.000595,60]
[343066409,1732322947014,-153.15,0.000595,60]
[343066410,1732322947037,-153.15,0.000595,60]
[343066411,1732322947059,-338.47,0.00059698,7]
[343066412,1732322947082,-3320.4,0.00059698,7]
[343066413,1732322947103,-7390.79,0.00059698,7]
[343066414,1732322947125,-8491.14,0.00059698,7]
[343066415,1732322947147,-258.01,0.00059802,30]
[343066416,1732322947172,-250.0,0.00059824,120]
[343066417,1732322947193,-171.9,0.00059868,2]
[343066418,1732322947216,-300.0,0.00059889,2]
[343066419,1732322947239,-479.3,0.00059917,2]
[343066420,1732322947265,-556.94,0.00059946,2]
[343066421,1732322947287,-150.0,0.00059958,120]
[343066422,1732322947309,-648.61318201,0.00059973,15]
[343066423,1732322947337,-500.0,0.00059973,7]
[343066424,1732322947359,-500.0,0.00059973,2]
[343066425,1732322947380,-500.0,0.00059973,15]
[343066426,1732322947402,-150.0,0.00059973,9]
[343066427,1732322947424,-500.0,0.00059975,2]
[343066428,1732322947447,-188.92539833,0.00059998,12]
[343066429,1732322947471,-243.802,0.00059998,120]
[343066430,1732322947582,-2722.166,0.00059998,120]
[343066431,1732322947604,-1000.0,0.00059998,30]
[343066432,1732322947624,-205.0727779,0.00059999,120]
[343066433,1732322947646,-421.71497071,0.00059999,120]
[343066434,1732322947672,-500.0,0.00059999,120]
[343066435,1732322947694,-500.0,0.00059999,120]
[343066436,1732322947716,-500.0,0.00059999,120]
[343066437,1732322947738,-345.57019324,0.00059999,120]
[343066438,1732322947762,-500.0,0.00059999,120]
[343066439,1732322947783,-500.0,0.00059999,120]
[343066440,1732322947806,-500.0,0.00059999,120]
[343066441,1732322947828,-500.0,0.00059999,120]
[343066442,1732322947850,-500.0,0.00059999,120]
[343066443,1732322947873,-500.0,0.00059999,120]
[343066444,1732322947897,-500.0,0.00059999,120]
[343066445,1732322947917,-2000.0,0.00059999,15]
[343066446,1732322947938,-500.0,0.00059999,120]
[343066447,1732322947958,-200.0,0.00059999,15]
[343066448,1732322947980,-500.0,0.00059999,120]
[343066449,1732322948000,-1238.97,0.00059999,120]
[343066450,1732322948022,-500.0,0.00059999,120]
[343066451,1732322948043,-500.0,0.00059999,120]
[343066452,1732322948064,-500.0,0.00059999,120]
[343066453,1732322948086,-397.37554028,0.00059999,120]
[343066454,1732322948110,-500.0,0.00059999,120]
[343066455,1732322948133,-500.0,0.00059999,120]
[343066456,1732322948159,-621.38,0.00059999,120]
[343066457,1732322948183,-500.0,0.00059999,120]
[343066458,1732322948207,-500.0,0.00059999,120]
[343066459,1732322948230,-500.0,0.00059999,120]
[343066460,1732322948252,-1194.74,0.00059999,120]
[343066461,1732322948275,-500.0,0.00059999,120]
[343066462,1732322948295,-500.0,0.00059999,120]
[343066463,1732322948317,-500.0,0.00059999,120]
[343066464,1732322948338,-500.0,0.00059999,120]
[343066465,1732322948358,-500.0,0.00059999,120]
[343066466,1732322948378,-500.0,0.00059999,120]
[343066467,1732322948400,-500.0,0.00059999,120]
[343066468,1732322948423,-500.0,0.00059999,120]
[343066469,1732322948443,-500.0,0.00059999,120]
[343066470,1732322948476,-500.0,0.00059999,120]
[343066471,1732322948500,-500.0,0.00059999,120]
[343066472,1732322948525,-500.0,0.00059999,120]
[343066473,1732322948643,-500.0,0.00059999,120]
[343066474,1732322948664,-500.0,0.00059999,120]
[343066475,1732322948686,-500.0,0.00059999,120]
[343066476,1732322948708,-500.0,0.00059999,120]
[343066477,1732322948730,-500.0,0.00059999,120]
[343066478,1732322948753,-500.0,0.00059999,120]
[343066479,1732322948775,-500.0,0.00059999,120]
[343066480,1732322948796,-500.0,0.00059999,120]
[343066481,1732322948819,-500.0,0.00059999,120]
[343066482,1732322948841,-500.0,0.00059999,120]
[343066483,1732322948861,-500.0,0.00059999,120]
[343066484,1732322948882,-500.0,0.00059999,120]
[343066485,1732322948904,-543.76,0.00059999,120]
[343066486,1732322948925,-500.0,0.00059999,120]
[343066487,1732322948947,-500.0,0.00059999,120]
[343066488,1732322948967,-1245.85,0.00059999,120]
[343066489,1732322948992,-500.0,0.00059999,120]
[343066490,1732322949018,-500.0,0.00059999,120]
[343066491,1732322949040,-500.0,0.00059999,120]
[343066492,1732322949061,-500.0,0.00059999,120]
[343066493,1732322949097,-500.0,0.00059999,120]
[343066494,1732322949140,-500.0,0.00059999,120]
[343066495,1732322949180,-500.0,0.00059999,120]
[343066496,1732322949224,-500.0,0.00059999,120]
[343066497,1732322949270,-500.0,0.00059999,120]
[343066498,1732322949313,-500.0,0.00059999,120]
[343066499,1732322949351,-1665.54,0.00059999,120]
[343066500,1732322949386,-503.58996149,0.00059999,120]
[343066501,1732322949421,-500.0,0.00059999,120]
[343066502,1732322949459,-500.0,0.00059999,120]
[343066503,1732322949500,-500.0,0.00059999,120]
[343066504,1732322949539,-500.0,0.00059999,120]
[343066505,1732322949574,-500.0,0.00059999,120]
[343066506,1732322949610,-500.0,0.00059999,120]
[343066507,1732322949647,-500.0,0.00059999,120]
[343066508,1732322949681,-500.0,0.00059999,120]
[343066509,1732322949718,-500.0,0.00059999,120]
[343066510,1732322949754,-500.0,0.00059999,120]
[343066511,1732322949789,-500.0,0.00059999,120]
[343066512,1732322949823,-500.0,0.00059999,120]
[343066513,1732322949857,-500.0,0.00059999,120]
[343066514,1732322950008,-500.0,0.00059999,120]
[343066515,1732322950032,-700.0,0.00059999,120]
[343066516,1732322950055,-500.0,0.00059999,120]
[343066517,1732322950076,-500.0,0.00059999,120]
[343066518,1732322950097,-504.08728121,0.00059999,120]
[343066519,1732322950119,-500.0,0.00059999,120]
[343066520,1732322950141,-500.0,0.00059999,120]
[343066521,1732322950165,-500.0,0.00059999,120]
[343066522,1732322950186,-530.50683949,0.00059999,120]
[343066523,1732322950210,-500.0,0.00059999,120]
[343066524,1732322950232,-500.0,0.00059999,120]
[343066525,1732322950258,-1494.33,0.00059999,120]
[343066526,1732322950279,-500.0,0.00059999,120]
[343066527,1732322950299,-500.0,0.00059999,120]
[343066528,1732322950321,-2000.0,0.00059999,15]
[343066529,1732322950343,-200.0,0.00059999,15]
[343066530,1732322950364,-200.0,0.00059999,15]
[343066531,1732322950387,-600.0,0.0006,120]
[343066532,1732322950410,-151.0,0.0006,120]
[343066533,1732322950430,-2078.5493955,0.00060012,2]
[343066534,1732322950451,-200.0,0.00060053,2]
[343066535,1732322950477,-158.83,0.00060126,120]
[343066536,1732322950497,-1000.0,0.00060159,120]
[343066537,1732322950520,-500.0,0.00060201,120]
[343066538,1732322950542,-181.26,0.00060259,120]
[343066539,1732322950563,-182.84,0.00060274,2]
[343066540,1732322950584,-969.0860097,0.00060521,7]
[343066541,1732322950605,-1000.0,0.00060521,2]
[343066542,1732322950627,-402.23064724,0.00060521,15]
[343066543,1732322950650,-2000.0,0.00060599,15]
[343066544,1732322950672,-200.0,0.00060599,15]
[343066545,1732322950693,-200.0,0.00060599,15]
[343066546,1732322950714,-200.0,0.00060599,15]
[343066547,1732322950735,-1200.0,0.00060708,120]
[343066548,1732322950757,-500.0,0.00060924,120]
[343066549,1732322950778,-1000.0,0.00060999,30]
[343066550,1732322950799,-1000.0,0.00061,2]
[343066551,1732322950821,-232.43,0.00061045,2]
[343066552,1732322950843,-232.43,0.00061061,2]
[343066553,1732322950864,-232.43,0.00061077,2]
[343066554,1732322950885,-232.43,0.00061093,2]
[343066555,1732322950907,-232.43,0.00061109,2]
[343066556,1732322950928,-232.43,0.00061125,2]
[343066557,1732322950951,-232.43,0.00061141,2]
[343066558,1732322950972,-232.43,0.00061157,2]
[343066559,1732322950995,-232.43,0.00061173,2]
[343066560,1732322951085,-232.43,0.00061189,2]
[343066561,1732322951109,-200.0,0.00061205,15]
[343066562,1732322951131,-200.0,0.00061205,15]
[343066563,1732322951152,-200.0,0.00061205,15]
[343066564,1732322951176,-232.43,0.00061205,2]
[343066565,1732322951197,-232.43,0.00061222,2]
[343066566,1732322951221,-232.43,0.00061238,2]
[343066567,1732322951244,-232.43,0.00061254,2]
[343066568,1732322951268,-232.43,0.0006127,2]
[343066569,1732322951290,-232.43,0.00061286,2]
[343066570,1732322951314,-232.43,0.00061302,2]
[343066571,1732322951338,-248.0,0.00061318,2]
[343066572,1732322951359,-232.43,0.00061318,2]
[343066573,1732322951380,-232.43,0.00061334,2]
[343066574,1732322951402,-200.0,0.0006134,30]
[343066575,1732322951424,-232.43,0.0006135,2]
[343066576,1732322951445,-500.0,0.00061363,120]
[343066577,1732322951467,-355.83,0.00061392,120]
[343066578,1732322951489,-1000.0,0.00061392,120]
[343066579,1732322951513,-165.88,0.00061448,2]
[343066580,1732322951535,-1200.0,0.00061468,120]
[343066581,1732322951558,-191.68675,0.0006149,120]
[343066582,1732322951579,-500.0,0.00061522,2]
[343066583,1732322951601,-263.372,0.0006155,120]
[343066584,1732322951624,-150.0,0.00061559,120]
[343066585,1732322951647,-246.55,0.00061562,120]
[343066586,1732322951669,-449.58,0.00061594,2]
[343066587,1732322951692,-163.72,0.00061596,2]
[343066588,1732322951715,-500.0,0.00061656,120]
[343066589,1732322951737,-250.0,0.00061686,120]
[343066590,1732322951762,-2319.13,0.00061766,30]
[343066591,1732322951788,-250.0,0.00061799,120]
[343066592,1732322951810,-200.0,0.00061817,15]
[343066593,1732322951831,-200.0,0.00061817,15]
[343066594,1732322951853,-200.0,0.00061817,15]
[343066595,1732322951877,-200.0,0.00061918,2]
[343066596,1732322951898,-996.28,0.00061958,2]
[343066597,1732322951919,-500.0,0.00062,120]
[343066598,1732322951940,-1293.49,0.00062153,2]
[343066599,1732322951962,-230.44,0.0006219,120]
[343066600,1732322951983,-458.23,0.00062193,2]
[343066601,1732322952006,-983.82,0.00062203,2]
[343066602,1732322952028,-500.0,0.00062208,120]
[343066603,1732322952051,-500.0,0.00062221,120]
[343066604,1732322952140,-156.56,0.00062229,30]
[343066605,1732322952167,-187.87,0.00062239,30]
[343066606,1732322952190,-225.44,0.00062325,30]
[343066607,1732322952214,-166.89,0.00062335,2]
[343066608,1732322952238,-500.0,0.00062344,120]
[343066609,1732322952266,-324.64,0.00062405,30]
[343066610,1732322952289,-270.53,0.00062405,30]
[343066611,1732322952311,-389.56,0.00062415,30]
[343066612,1732322952333,-467.47,0.00062425,30]
[343066613,1732322952356,-200.0,0.00062435,15]
[343066614,1732322952377,-200.0,0.00062435,15]
[343066615,1732322952398,-200.0,0.00062435,15]
[343066616,1732322952420,-300.0,0.00062685,120]
[343066617,1732322952442,-500.0,0.00062724,120]
[343066618,1732322952463,-176.19,0.00062837,91]
[343066619,1732322952486,-150.0,0.00062967,60]
[343066620,1732322952513,-151.56,0.00062967,60]
[343066621,1732322952535,-1050.0,0.00063,2]
[343066622,1732322952558,-200.0,0.00063014,120]
[343066623,1732322952581,-150.0,0.00063161,120]
[343066624,1732322952603,-150.0,0.00063178,60]
[343066625,1732322952625,-150.0,0.00063178,60]
[343066626,1732322952647,-150.0,0.00063178,60]
[343066627,1732322952670,-362.72,0.00063178,60]
[343066628,1732322952692,-150.0,0.00063236,60]
[343066629,1732322952716,-362.72,0.00063236,60]
[343066630,1732322952738,-362.72,0.00063236,60]
[343066631,1732322952763,-433.58,0.00063236,60]
[343066632,1732322952785,-362.72,0.00063236,60]
[343066633,1732322952809,-433.58,0.00063236,60]
[343066634,1732322952832,-433.58,0.00063236,60]
[343066635,1732322952855,-150.0,0.00063279,60]
[343066636,1732322952876,-430.76,0.00063279,60]
[343066637,1732322952899,-150.0,0.00063279,60]
[343066638,1732322952920,-150.0,0.00063279,60]
[343066639,1732322952943,-150.0,0.00063279,60]
[343066640,1732322952965,-150.0,0.00063279,60]
[343066641,1732322952986,-150.0,0.00063279,60]
[343066642,1732322953010,-150.0,0.00063279,60]
[343066643,1732322953032,-150.0,0.00063279,60]
[343066644,1732322953054,-150.0,0.00063279,60]
[343066645,1732322953076,-150.0,0.00063279,60]
[343066646,1732322953097,-150.0,0.00063279,60]
[343066647,1732322953196,-177.44,0.00063279,60]
[343066648,1732322953221,-518.72928102,0.00063305,120]
[343066649,1732322953244,-500.0,0.0006332,120]
[343066650,1732322953271,-158.83,0.00063399,120]
[343066651,1732322953293,-150.0,0.00063577,30]
[343066652,1732322953316,-500.0,0.00063585,120]
[343066653,1732322953340,-434.47418089,0.00063613,120]
[343066654,1732322954251,-65.52581911,0.00063613,120]
[343066655,1732322954278,-153.23,0.00063658,120]
[343066656,1732322954301,-20536.0587,0.00063707,2]
[343066657,1732322954324,-168.31390244,0.00063707,15]
[343066658,1732322954348,-604.52785743,0.00063779,120]
[343066659,1732322954369,-764.68,0.00063807,60]
[343066660,1732322954390,-764.68,0.00063807,60]
[343066661,1732322954411,-150.0,0.00063807,60]
[343066662,1732322954433,-764.68,0.00063807,60]
[343066663,1732322954454,-150.0,0.00063807,60]
[343066664,1732322954475,-764.68,0.00063807,60]
[343066665,1732322954496,-150.0,0.00063807,60]
[343066666,1732322954519,-150.0,0.00063807,60]
[343066667,1732322954540,-150.0,0.00063807,60]
[343066668,1732322954561,-153.47,0.00063807,60]
[343066669,1732322954583,-162.32,0.00063807,60]
[343066670,1732322954605,-150.0,0.00063807,60]
[343066671,1732322954626,-150.0,0.00063807,60]
[343066672,1732322954649,-150.0,0.00063807,60]
[343066673,1732322954671,-433.58,0.00063807,60]
[343066674,1732322954694,-1939.04,0.00063807,60]
[343066675,1732322954716,-362.72,0.00063807,60]
[343066676,1732322954740,-150.0,0.00063807,60]
[343066677,1732322954766,-433.58,0.00063807,60]
[343066678,1732322954789,-362.72,0.00063807,60]
[343066679,1732322954812,-150.0,0.00063807,60]
[343066680,1732322954834,-150.0,0.00063807,60]
[343066681,1732322954857,-362.72,0.00063807,60]
[343066682,1732322954879,-433.58,0.00063807,60]
[343066683,1732322954900,-150.0,0.00063807,60]
[343066684,1732322954922,-433.58,0.00063807,60]
[343066685,1732322954944,-362.72,0.00063807,60]
[343066686,1732322954965,-150.0,0.00063807,60]
[343066687,1732322954988,-433.58,0.00063807,60]
[343066688,1732322955011,-150.0,0.00063807,60]
[343066689,1732322955032,-362.72,0.00063807,60]
[343066690,1732322955053,-150.0,0.00063807,60]
[343066691,1732322955074,-150.0,0.00063807,60]
[343066692,1732322955096,-433.58,0.00063807,60]
[343066693,1732322955118,-359.15,0.00063807,60]
[343066694,1732322955140,-220.76,0.00063807,60]
[343066695,1732322955163,-433.58,0.00063807,60]
[343066696,1732322955188,-337.66,0.00063807,60]
[343066697,1732322955211,-433.48,0.00063841,60]
[343066698,1732322955234,-159.0,0.00063899,25]
[343066699,1732322955256,-1000.0,0.00063914,30]
[343066700,1732322955280,-168.31390242,0.00063951,15]
[343066701,1732322955301,-274.13,0.00063953,60]
[343066702,1732322955323,-362.72,0.00063978,60]
[343066703,1732322955346,-150.0,0.00063978,60]
[343066704,1732322955368,-191.68675,0.0006399,120]
[343066705,1732322955463,-1000.0,0.00063999,13]
[343066706,1732322955484,-243.0,0.00064,7]
[343066707,1732322955505,-361.28,0.00064,60]
[343066708,1732322955530,-277.79,0.00064,60]
[343066709,1732322955552,-150.0,0.00064,60]
[343066710,1732322955572,-150.0,0.00064,60]
[343066711,1732322955594,-922.52347006,0.00064,120]
[343066712,1732322955617,-178.0,0.00064,120]
[343066713,1732322955640,-263.372,0.00064028,120]
[343066714,1732322955661,-300.0,0.00064055,120]
[343066715,1732322955682,-165.2,0.00064128,2]
[343066716,1732322955704,-168.31390242,0.00064194,15]
[343066717,1732322955726,-500.0,0.000642,15]
[343066718,1732322955748,-500.0,0.00064238,2]
[343066719,1732322955771,-1713.44,0.00064297,30]
[343066720,1732322955792,-1000.0,0.00064376,30]
[343066721,1732322955814,-23900.0,0.00064377,2]
[343066722,1732322955836,-1293.49,0.00064417,2]
[343066723,1732322955857,-168.31390242,0.00064438,15]
[343066724,1732322955878,-1200.0,0.00064466,120]
[343066725,1732322955899,-1200.0,0.00064529,120]
[343066726,1732322955920,-232.4870253,0.00064679,120]
[343066727,1732322955941,-168.31390242,0.00064682,15]
[343066728,1732322955963,-150.0,0.00064762,120]
[343066729,1732322955984,-171.38,0.00064797,2]
[343066730,1732322956007,-257.66,0.00064811,120]
[343066731,1732322956033,-1200.0,0.00064841,120]
[343066732,1732322956054,-150.0,0.00064878,60]
[343066733,1732322956075,-433.58,0.00064878,60]
[343066734,1732322956097,-150.0,0.00064878,60]
[343066735,1732322956120,-150.0,0.00064878,60]
[343066736,1732322956141,-150.0,0.00064878,60]
[343066737,1732322956166,-150.0,0.00064878,60]
[343066738,1732322956188,-362.72,0.00064878,60]
[343066739,1732322956209,-150.0,0.00064878,60]
[343066740,1732322956230,-433.58,0.00064878,60]
[343066741,1732322956252,-150.0,0.00064878,60]
[343066742,1732322956277,-362.72,0.00064878,60]
[343066743,1732322956299,-433.58,0.00064878,60]
[343066744,1732322956322,-433.58,0.00064878,60]
[343066745,1732322956343,-362.72,0.00064878,60]
[343066746,1732322956364,-362.72,0.00064878,60]
[343066747,1732322956385,-433.58,0.00064878,60]
[343066748,1732322956408,-433.58,0.00064878,60]
[343066749,1732322956434,-168.31390242,0.00064925,15]
[343066750,1732322956457,-4793.77,0.00065,120]
[343066751,1732322956478,-1100.0,0.00065,2]
[343066752,1732322956500,-1200.0,0.00065002,120]
[343066753,1732322956524,-500.0,0.0006503,120]
[343066754,1732322956545,-421.93189668,0.00065038,120]
[343066755,1732322956567,-25098.0,0.00065053,2]
[343066756,1732322956652,-164.45,0.00065068,120]
[343066757,1732322956679,-900.0,0.000651,23]
[343066758,1732322956701,-365.50840336,0.00065156,120]
[343066759,1732322956725,-168.31390242,0.00065169,15]
[343066760,1732322956749,-1800.0,0.000652,23]
[343066761,1732322956777,-150.0,0.00065214,30]
[343066762,1732322956798,-162.5094136,0.00065273,15]
[343066763,1732322956819,-313.18447707,0.00065273,14]
[343066764,1732322956841,-1812.78714467,0.00065298,30]
[343066765,1732322956864,-280.04886143,0.00065299,120]
[343066766,1732322956885,-500.0,0.00065299,120]
[343066767,1732322956907,-1238.97,0.00065299,120]
[343066768,1732322956930,-399.76678933,0.00065299,120]
[343066769,1732322956953,-500.0,0.00065299,120]
[343066770,1732322956973,-500.0,0.00065299,120]
[343066771,1732322956995,-621.38,0.00065299,120]
[343066772,1732322957020,-500.0,0.00065299,120]
[343066773,1732322957044,-500.0,0.00065299,120]
[343066774,1732322957067,-1194.74,0.00065299,120]
[343066775,1732322957091,-500.0,0.00065299,120]
[343066776,1732322957119,-500.0,0.00065299,120]
[343066777,1732322957142,-500.0,0.00065299,120]
[343066778,1732322957166,-500.0,0.00065299,120]
[343066779,1732322957194,-500.0,0.00065299,120]
[343066780,1732322957217,-500.0,0.00065299,120]
[343066781,1732322957240,-500.0,0.00065299,120]
[343066782,1732322957269,-500.0,0.00065299,120]
[343066783,1732322957292,-500.0,0.00065299,120]
[343066784,1732322957314,-500.0,0.00065299,120]
[343066785,1732322957336,-500.0,0.00065299,120]
[343066786,1732322957357,-543.76,0.00065299,120]
[343066787,1732322957377,-500.0,0.00065299,120]
[343066788,1732322957401,-1245.85,0.00065299,120]
[343066789,1732322957422,-500.0,0.00065299,120]
[343066790,1732322957444,-381.69335992,0.00065299,120]
[343066791,1732322957466,-500.0,0.00065299,120]
[343066792,1732322957489,-500.0,0.00065299,120]
[343066793,1732322957515,-500.0,0.00065299,120]
[343066794,1732322957538,-1665.54,0.00065299,120]
[343066795,1732322957560,-500.0,0.00065299,120]
[343066796,1732322957581,-500.0,0.00065299,120]
[343066797,1732322957605,-500.0,0.00065299,120]
[343066798,1732322957628,-500.0,0.00065299,120]
[343066799,1732322957651,-500.96066701,0.00065299,120]
[343066800,1732322957673,-500.0,0.00065299,120]
[343066801,1732322957695,-500.0,0.00065299,120]
[343066802,1732322957717,-500.0,0.00065299,120]
[343066803,1732322957739,-500.0,0.00065299,120]
[343066804,1732322957765,-500.0,0.00065299,120]
[343066805,1732322957787,-500.0,0.00065299,120]
[343066806,1732322957876,-500.0,0.00065299,120]
[343066807,1732322957899,-500.0,0.00065299,120]
[343066808,1732322957921,-500.0,0.00065299,120]
[343066809,1732322957944,-2700.0,0.000653,23]
[343066810,1732322957965,-983.82,0.00065313,2]
[343066811,1732322957987,-500.0,0.00065318,120]
[343066812,1732322958008,-500.0,0.00065318,120]
[343066813,1732322958033,-500.0,0.00065318,120]
[343066814,1732322958056,-1494.33,0.00065318,120]
[343066815,1732322958080,-150.0,0.00065329,30]
[343066816,1732322958103,-150.0,0.00065336,30]
[343066817,1732322958125,-150.0,0.00065363,30]
[343066818,1732322958149,-150.0,0.00065379,30]
[343066819,1732322958175,-150.0,0.00065381,30]
[343066820,1732322958198,-150.0,0.00065381,30]
[343066821,1732322958223,-3600.0,0.000654,23]
[343066822,1732322958247,-168.31390242,0.00065413,15]
[343066823,1732322958275,-150.0,0.00065417,30]
[343066824,1732322958299,-150.0,0.0006542,30]
[343066825,1732322958323,-150.0,0.00065422,30]
[343066826,1732322958346,-150.0,0.00065425,30]
[343066827,1732322958369,-150.0,0.00065427,30]
[343066828,1732322958394,-150.0,0.00065429,30]
[343066829,1732322958418,-150.0,0.00065432,30]
[343066830,1732322958441,-421.93189668,0.00065435,120]
[343066831,1732322958464,-150.0,0.00065442,30]
[343066832,1732322958488,-150.0,0.0006545,30]
[343066833,1732322958513,-150.0,0.00065482,30]
[343066834,1732322958537,-150.0,0.00065484,30]
[343066835,1732322958559,-421.93189668,0.00065488,120]
[343066836,1732322958583,-4500.0,0.000655,23]
[343066837,1732322958607,-150.0,0.00065515,30]
[343066838,1732322958632,-150.0,0.00065523,30]
[343066839,1732322958655,-1500.0,0.00065528,60]
[343066840,1732322958679,-150.0,0.00065545,30]
[343066841,1732322958702,-150.0,0.00065551,30]
[343066842,1732322958727,-150.0,0.00065563,30]
[343066843,1732322958751,-150.0,0.00065568,30]
[343066844,1732322958778,-150.0,0.00065569,30]
[343066845,1732322958803,-150.0,0.00065577,30]
[343066846,1732322958833,-150.0,0.00065577,30]
[343066847,1732322958856,-150.0,0.00065583,30]
[343066848,1732322958878,-1500.0,0.00065587,60]
[343066849,1732322958901,-1500.0,0.00065592,60]
[343066850,1732322958924,-900.0,0.000656,23]
[343066851,1732322958949,-150.0,0.00065604,30]
[343066852,1732322958973,-150.0,0.00065605,30]
[343066853,1732322958997,-150.0,0.00065607,30]
[343066854,1732322959108,-500.0,0.00065611,120]
[343066855,1732322959133,-152.0,0.00065613,4]
[343066856,1732322959159,-150.0,0.00065613,30]
[343066857,1732322959187,-1500.0,0.00065619,60]
[343066858,1732322959212,-150.0,0.00065623,30]
[343066859,1732322959236,-1500.0,0.0006563,60]
[343066860,1732322959260,-150.0,0.00065634,30]
[343066861,1732322959288,-150.0,0.00065635,30]
[343066862,1732322959313,-500.0,0.00065635,120]
[343066863,1732322959340,-150.0,0.00065646,30]
[343066864,1732322959361,-150.0,0.00065651,30]
[343066865,1732322959384,-150.0,0.00065652,30]
[343066866,1732322959407,-427.8693433,0.00065653,37]
[343066867,1732322959430,-556.22304918,0.00065653,49]
[343066868,1732322959452,-321.96362714,0.00065653,2]
[343066869,1732322959476,-150.0,0.00065654,30]
[343066870,1732322959500,-168.31390242,0.00065656,15]
[343066871,1732322959528,-1500.0,0.00065662,60]
[343066872,1732322959553,-1500.0,0.0006568,60]
[343066873,1732322959578,-150.0,0.00065681,30]
[343066874,1732322959603,-1480.92658221,0.00065685,60]
[343066875,1732322959627,-1238.97,0.00065688,120]
[343066876,1732322959651,-1238.97,0.00065688,120]
[343066877,1732322959678,-500.0,0.00065688,120]
[343066878,1732322959704,-621.38,0.00065688,120]